[Event "CCT Chessable Masters Play-In 2025"]
[Site "Online"]
[Date "2025.02.17"]
[Round "5.25"]
[White "Mamedov, Rauf"]
[Black "Svane, Rasmus"]
[Result "1-0"]
[ECO "C77"]
[WhiteElo "2656"]
[BlackElo "2621"]
[PlyCount "285"]
[EventDate "2025.02.13"]
[EventType "swiss"]
[EventCountry "NET"]
[TimeControl "600"]
[WhiteClock "0:00:01"]

1. e4 {[%emt 0:00:01]} e5 {[%emt 0:00:03]} 2. Nf3 {[%emt 0:00:01]} Nc6 {[%emt 0:00:01]} 3. Bb5 {[%emt 0:00:04]} a6 {[%emt 0:00:01]} 4. Ba4 {[%emt 0:00:01]} Nf6 {[%emt 0:00:01]} 5. Nc3 {[%emt 0:00:01]} Be7 {[%emt 0:01:06]} 6. d3 {[%emt 0:00:06]} d6 {[%emt 0:00:11]} 7. Bxc6+ {[%emt 0:00:05]} bxc6 {[%emt 0:00:01]} 8. O-O {[%emt 0:00:02]} c5 {[%emt 0:00:01]} 9. a3 {[%emt 0:00:53]} Rb8 {[%emt 0:00:25]} 10. b4 {[%emt 0:00:34]} cxb4 {[%emt 0:00:12]} 11. axb4 {[%emt 0:00:00]} Rxb4 {[%emt 0:00:01]} 12. d4 {[%emt 0:00:01]} exd4 {[%emt 0:00:51]} 13. Nxd4 {[%emt 0:00:02]} Bd7 {[%emt 0:00:44]} 14. Rxa6 {[%emt 0:00:17]} O-O {[%emt 0:00:02]} 15. Ba3 {[%emt 0:00:20]} Rb8 {[%emt 0:00:05]} 16. e5 {[%emt 0:00:37]} dxe5 {[%emt 0:00:53]} 17. Nc6 {[%emt 0:00:02]} Bxc6 {[%emt 0:00:02]} 18. Qxd8 {[%emt 0:00:01]} Rfxd8 {[%emt 0:00:24]} 19. Bxe7 {[%emt 0:00:01]} Re8 {[%emt 0:00:11]} 20. Bxf6 {[%emt 0:00:06]} Bb7 {[%emt 0:00:01]} 21. Ra7 {[%emt 0:00:01]} gxf6 {[%emt 0:00:01]} 22. Rb1 {[%emt 0:00:01]} Be4 {[%emt 0:00:07]} 23. Rxb8 {[%emt 0:01:50]} Rxb8 {[%emt 0:00:02]} 24. Rxc7 {[%emt 0:00:02]} Bxc2 {[%emt 0:00:06]} 25. f3 {[%emt 0:00:01]} Kg7 {[%emt 0:00:06]} 26. h4 {[%emt 0:00:02]} h5 {[%emt 0:00:08]} 27. Kf2 {[%emt 0:00:12]} Rb2 {[%emt 0:00:06]} 28. Kg3 {[%emt 0:00:17]} Bd3 {[%emt 0:00:08]} 29. Nd1 {[%emt 0:00:28]} Rd2 {[%emt 0:00:08]} 30. Nf2 {[%emt 0:00:14]} Bg6 {[%emt 0:00:03]} 31. Nh3 {[%emt 0:00:12]} Bf5 {[%emt 0:00:12]} 32. Nf2 {[%emt 0:00:03]} Ra2 {[%emt 0:00:08]} 33. Rc5 {[%emt 0:00:11]} Bg6 {[%emt 0:00:09]} 34. Nh3 {[%emt 0:00:03]} Re2 {[%emt 0:00:02]} 35. Ra5 {[%emt 0:00:06]} Bf5 {[%emt 0:00:07]} 36. Nf2 {[%emt 0:00:01]} Rc2 {[%emt 0:00:06]} 37. Rb5 {[%emt 0:00:07]} Ra2 {[%emt 0:00:07]} 38. Rc5 {[%emt 0:00:01]} Bg6 {[%emt 0:00:03]} 39. Nh3 {[%emt 0:00:03]} Re2 {[%emt 0:00:02]} 40. Rc7 {[%emt 0:00:02]} Bc2 {[%emt 0:00:10]} 41. Ra7 {[%emt 0:00:07]} Bb3 {[%emt 0:00:03]} 42. Ng1 {[%emt 0:00:35]} Rc2 {[%emt 0:00:05]} 43. Nh3 {[%emt 0:00:04]} Be6 {[%emt 0:00:01]} 44. Ra5 {[%emt 0:00:04]} Re2 {[%emt 0:00:08]} 45. Ng1 {[%emt 0:00:01]} Re1 {[%emt 0:00:04]} 46. Kf2 {[%emt 0:00:03]} Rb1 {[%emt 0:00:02]} 47. Rc5 {[%emt 0:00:02]} Kg6 {[%emt 0:00:05]} 48. Ne2 {[%emt 0:00:03]} Rb2 {[%emt 0:00:01]} 49. Ke3 {[%emt 0:00:01]} Bd7 {[%emt 0:00:04]} 50. f4 {[%emt 0:00:22]} Bg4 {[%emt 0:00:03]} 51. Nc3 {[%emt 0:00:03]} exf4+ {[%emt 0:00:11]} 52. Kxf4 {[%emt 0:00:00]} Rxg2 {[%emt 0:00:00]} 53. Nd5 {[%emt 0:00:08]} Rf2+ {[%emt 0:00:17]} 54. Ke3 {[%emt 0:00:01]} Rf3+ {[%emt 0:00:02]} 55. Ke4 {[%emt 0:00:00]} Rh3 {[%emt 0:00:08]} 56. Nf4+ {[%emt 0:00:01]} Kh6 {[%emt 0:00:05]} 57. Nxh3 {[%emt 0:00:01]} Bxh3 {[%emt 0:00:01]} 58. Kf4 {[%emt 0:00:00]} Bg4 {[%emt 0:00:02]} 59. Rc7 {[%emt 0:00:02]} Kg6 {[%emt 0:00:01]} 60. Ra7 {[%emt 0:00:00]} Kg7 {[%emt 0:00:01]} 61. Ra1 {[%emt 0:00:01]} Kg6 {[%emt 0:00:00]} 62. Ra5 {[%emt 0:00:00]} Kg7 {[%emt 0:00:01]} 63. Ke3 {[%emt 0:00:01]} Kg6 {[%emt 0:00:01]} 64. Kd4 {[%emt 0:00:00]} Kg7 {[%emt 0:00:01]} 65. Kc5 {[%emt 0:00:01]} Kg6 {[%emt 0:00:00]} 66. Kd6 {[%emt 0:00:01]} Kg7 {[%emt 0:00:01]} 67. Ke7 {[%emt 0:00:00]} f5 {[%emt 0:00:07]} 68. Ra4 {[%emt 0:00:08]} Kg6 {[%emt 0:00:03]} 69. Ra6+ {[%emt 0:00:03]} Kg7 {[%emt 0:00:07]} 70. Rf6 {[%emt 0:00:01]} Bh3 {[%emt 0:00:01]} 71. Rxf7+ {[%emt 0:00:01]} Kg6 {[%emt 0:00:00]} 72. Rf6+ {[%emt 0:00:00]} Kg7 {[%emt 0:00:01]} 73. Ke6 {[%emt 0:00:01]} Bg4 {[%emt 0:00:03]} 74. Ke5 {[%emt 0:00:00]} Bh3 {[%emt 0:00:02]} 75. Rb6 {[%emt 0:00:01]} Bg4 {[%emt 0:00:00]} 76. Kf4 {[%emt 0:00:01]} Kf7 {[%emt 0:00:01]} 77. Kg5 {[%emt 0:00:00]} Ke7 {[%emt 0:00:01]} 78. Rf6 {[%emt 0:00:01]} Kd7 {[%emt 0:00:00]} 79. Kf4 {[%emt 0:00:02]} Ke7 {[%emt 0:00:01]} 80. Ke5 {[%emt 0:00:01]} Bh3 {[%emt 0:00:01]} 81. Rh6 {[%emt 0:00:01]} Bg4 {[%emt 0:00:00]} 82. Rh7+ {[%emt 0:00:00]} Kd8 {[%emt 0:00:01]} 83. Kd6 {[%emt 0:00:01]} Ke8 {[%emt 0:00:01]} 84. Re7+ {[%emt 0:00:01]} Kd8 {[%emt 0:00:00]} 85. Re5 {[%emt 0:00:02]} f4 {[%emt 0:00:02]} 86. Re4 {[%emt 0:00:01]} f3 {[%emt 0:00:01]} 87. Rf4 {[%emt 0:00:01]} Ke8 {[%emt 0:00:01]} 88. Rf6 {[%emt 0:00:00]} f2 {[%emt 0:00:18]} 89. Rxf2 {[%emt 0:00:03]} Bd1 {[%emt 0:00:00]} 90. Rf4 {[%emt 0:00:03]} Bg4 {[%emt 0:00:01]} 91. Rf6 {[%emt 0:00:00]} Bd1 {[%emt 0:00:00]} 92. Rf4 {[%emt 0:00:03]} Bg4 {[%emt 0:00:01]} 93. Ke5 {[%emt 0:00:00]} Bd1 {[%emt 0:00:01]} 94. Kf6 {[%emt 0:00:01]} Bg4 {[%emt 0:00:00]} 95. Re4+ {[%emt 0:00:02]} Kd7 {[%emt 0:00:01]} 96. Rd4+ {[%emt 0:00:00]} Kc6 {[%emt 0:00:01]} 97. Ke5 {[%emt 0:00:02]} Kc7 {[%emt 0:00:01]} 98. Rd6 {[%emt 0:00:01]} Bf3 {[%emt 0:00:01]} 99. Rf6 {[%emt 0:00:01]} Bg4 {[%emt 0:00:00]} 100. Kd5 {[%emt 0:00:01]} Be2 {[%emt 0:00:00]} 101. Rf7+ {[%emt 0:00:01]} Kd8 {[%emt 0:00:01]} 102. Kd6 {[%emt 0:00:00]} Kc8 {[%emt 0:00:01]} 103. Rc7+ {[%emt 0:00:02]} Kd8 {[%emt 0:00:00]} 104. Rd7+ {[%emt 0:00:00]} Kc8 {[%emt 0:00:01]} 105. Re7 {[%emt 0:00:01]} Bg4 {[%emt 0:00:01]} 106. Re8+ {[%emt 0:00:00]} Kb7 {[%emt 0:00:00]} 107. Re4 {[%emt 0:00:01]} Kb6 {[%emt 0:00:00]} 108. Ke5 {[%emt 0:00:01]} Kc5 {[%emt 0:00:01]} 109. Rd4 {[%emt 0:00:02]} Be2 {[%emt 0:00:01]} 110. Rd5+ {[%emt 0:00:01]} Kc6 {[%emt 0:00:00]} 111. Rd2 {[%emt 0:00:00]} Bg4 {[%emt 0:00:01]} 112. Rd6+ {[%emt 0:00:00]} Kc5 {[%emt 0:00:01]} 113. Rg6 {[%emt 0:00:00]} Kc4 {[%emt 0:00:00]} 114. Rg5 {[%emt 0:00:01]} Kc5 {[%emt 0:00:01]} 115. Kf4+ {[%emt 0:00:00]} Kd6 {[%emt 0:00:00]} 116. Rg7 {[%emt 0:00:01]} Ke6 {[%emt 0:00:01]} 117. Kg5 {[%emt 0:00:00]} Ke5 {[%emt 0:00:01]} 118. Rf7 {[%emt 0:00:01]} Kd6 {[%emt 0:00:00]} 119. Rf6+ {[%emt 0:00:00]} Kd5 {[%emt 0:00:00]} 120. Rf4 {[%emt 0:00:01]} Be6 {[%emt 0:00:00]} 121. Rf6 {[%emt 0:00:01]} Ke5 {[%emt 0:00:00]} 122. Rh6 {[%emt 0:00:00]} Bg4 {[%emt 0:00:01]} 123. Rh8 {[%emt 0:00:00]} Bf3 {[%emt 0:00:00]} 124. Re8+ {[%emt 0:00:00]} Kd4 {[%emt 0:00:01]} 125. Rf8 {[%emt 0:00:01]} Bg4 {[%emt 0:00:00]} 126. Rf4+ {[%emt 0:00:00]} Ke3 {[%emt 0:00:00]} 127. Rxg4 {[%emt 0:00:01]} Kd2 {[%emt 0:00:00]} 128. Rf4 {[%emt 0:00:00]} Ke3 {[%emt 0:00:00]} 129. Rf5 {[%emt 0:00:01]} Kd2 {[%emt 0:00:01]} 130. Kxh5 {[%emt 0:00:00]} Kd1 {[%emt 0:00:00]} 131. Kg5 {[%emt 0:00:00]} Ke1 {[%emt 0:00:00]} 132. h5 {[%emt 0:00:00]} Kd1 {[%emt 0:00:00]} 133. h6 {[%emt 0:00:00]} Kc1 {[%emt 0:00:00]} 134. h7 {[%emt 0:00:00]} Kb2 {[%emt 0:00:00]} 135. h8=Q+ {[%emt 0:00:01]} Kc2 {[%emt 0:00:00]} 136. Qh2+ {[%emt 0:00:00]} Kc3 {[%emt 0:00:00]} 137. Rf3+ {[%emt 0:00:01]} Kd4 {[%emt 0:00:01]} 138. Qf4+ {[%emt 0:00:00]} Kd5 {[%emt 0:00:00]} 139. Rd3+ {[%emt 0:00:00]} Kc6 {[%emt 0:00:00]} 140. Qd6+ {[%emt 0:00:01]} Kb7 {[%emt 0:00:01]} 141. Rb3+ {[%emt 0:00:00]} Ka7 {[%emt 0:00:00]} 142. Qb6+ {[%emt 0:00:01]} Ka8 {[%emt 0:00:00]} 143. Ra3# {[%emt 0:00:00]} 1-0

[Event "CCT Chessable Masters Play-In 2025"]
[Site "Online"]
[Date "2025.02.17"]
[Round "5.26"]
[White "Ter-Sahakyan, Samvel"]
[Black "Sevian, Samuel"]
[Result "0-1"]
[ECO "C96"]
[WhiteElo "2611"]
[BlackElo "2692"]
[PlyCount "74"]
[EventDate "2025.02.13"]
[EventType "swiss"]
[EventCountry "NET"]
[TimeControl "600"]
[WhiteClock "0:01:05"]
[BlackClock "0:03:39"]

1. e4 {[%emt 0:00:01]} e5 {[%emt 0:00:10]} 2. Nf3 {[%emt 0:00:02]} Nc6 {[%emt 0:00:00]} 3. Bb5 {[%emt 0:00:01]} a6 {[%emt 0:00:01]} 4. Ba4 {[%emt 0:00:01]} Nf6 {[%emt 0:00:01]} 5. O-O {[%emt 0:00:01]} Be7 {[%emt 0:00:02]} 6. Re1 {[%emt 0:00:02]} b5 {[%emt 0:00:04]} 7. Bb3 {[%emt 0:00:01]} d6 {[%emt 0:00:49]} 8. c3 {[%emt 0:00:02]} O-O {[%emt 0:00:01]} 9. h3 {[%emt 0:00:00]} Na5 {[%emt 0:00:08]} 10. Bc2 {[%emt 0:00:02]} c5 {[%emt 0:00:00]} 11. d4 {[%emt 0:00:00]} Nd7 {[%emt 0:00:01]} 12. a4 {[%emt 0:00:12]} Rb8 {[%emt 0:00:01]} 13. axb5 {[%emt 0:01:46]} axb5 {[%emt 0:00:01]} 14. Nbd2 {[%emt 0:00:01]} exd4 {[%emt 0:00:05]} 15. cxd4 {[%emt 0:00:00]} Nc6 {[%emt 0:00:00]} 16. Nf1 {[%emt 0:01:26]} cxd4 {[%emt 0:00:50]} 17. Nxd4 {[%emt 0:00:03]} Nxd4 {[%emt 0:00:02]} 18. Qxd4 {[%emt 0:00:01]} Nc5 {[%emt 0:00:01]} 19. Ne3 {[%emt 0:00:27]} Bf6 {[%emt 0:00:22]} 20. Qd1 {[%emt 0:00:05]} Be6 {[%emt 0:00:07]} 21. Nd5 {[%emt 0:00:49]} Bxd5 {[%emt 0:00:06]} 22. Qxd5 {[%emt 0:00:02]} b4 {[%emt 0:00:00]} 23. Rb1 {[%emt 0:01:14]} b3 {[%emt 0:00:09]} 24. Bd1 {[%emt 0:00:11]} Re8 {[%emt 0:00:23]} 25. Bf4 {[%emt 0:00:11]} Be5 {[%emt 0:00:06]} 26. Be3 {[%emt 0:00:07]} Qa5 {[%emt 0:01:05]} 27. Be2 {[%emt 0:00:07]} Bxb2 {[%emt 0:00:17]} 28. Bc4 {[%emt 0:00:08]} Bc3 {[%emt 0:00:07]} 29. Red1 {[%emt 0:00:08]} b2 {[%emt 0:00:17]} 30. Qxf7+ {[%emt 0:00:02]} Kh8 {[%emt 0:00:01]} 31. Rxd6 {[%emt 0:00:35]} Nxe4 {[%emt 0:00:07]} 32. Re6 {[%emt 0:00:14]} Rxe6 {[%emt 0:00:14]} 33. Qxe6 {[%emt 0:00:02]} Nd2 {[%emt 0:00:18]} 34. Bxd2 {[%emt 0:00:12]} Bxd2 {[%emt 0:00:00]} 35. Qe4 {[%emt 0:00:06]} Bc1 {[%emt 0:00:09]} 36. Bd3 {[%emt 0:00:07]} Qh5 {[%emt 0:00:01]} 37. Be2 {[%emt 0:00:26]} Re8 {[%emt 0:00:15]} 0-1

[Event "CCT Chessable Masters Play-In 2025"]
[Site "Online"]
[Date "2025.02.17"]
[Round "5.27"]
[White "Bharath Subramaniyam H"]
[Black "Salem, A.R. Saleh"]
[Result "1/2-1/2"]
[ECO "B12"]
[WhiteElo "2567"]
[BlackElo "2631"]
[PlyCount "95"]
[EventDate "2025.02.13"]
[EventType "swiss"]
[EventCountry "NET"]
[TimeControl "600"]
[WhiteClock "0:01:20"]
[BlackClock "0:01:26"]

1. e4 {[%emt 0:00:01]} c6 {[%emt 0:00:01]} 2. d4 {[%emt 0:00:01]} d5 {[%emt 0:00:01]} 3. e5 {[%emt 0:00:01]} Bf5 {[%emt 0:00:01]} 4. g4 {[%emt 0:00:02]} Be4 {[%emt 0:00:05]} 5. f3 {[%emt 0:00:01]} Bg6 {[%emt 0:00:01]} 6. e6 {[%emt 0:00:07]} Qd6 {[%emt 0:00:01]} 7. exf7+ {[%emt 0:00:02]} Bxf7 {[%emt 0:00:01]} 8. Nc3 {[%emt 0:00:00]} Nd7 {[%emt 0:00:05]} 9. f4 {[%emt 0:00:04]} h5 {[%emt 0:00:12]} 10. g5 {[%emt 0:00:04]} e6 {[%emt 0:00:07]} 11. Nf3 {[%emt 0:00:03]} Ne7 {[%emt 0:00:08]} 12. Bh3 {[%emt 0:00:04]} Bg6 {[%emt 0:00:41]} 13. Nh4 {[%emt 0:00:53]} Bf5 {[%emt 0:00:01]} 14. Bxf5 {[%emt 0:00:06]} Nxf5 {[%emt 0:00:01]} 15. Nxf5 {[%emt 0:00:21]} exf5 {[%emt 0:00:01]} 16. O-O {[%emt 0:00:03]} Kf7 {[%emt 0:00:28]} 17. Nb1 {[%emt 0:00:24]} c5 {[%emt 0:00:38]} 18. Be3 {[%emt 0:00:33]} Re8 {[%emt 0:00:07]} 19. dxc5 {[%emt 0:00:02]} Qc6 {[%emt 0:00:06]} 20. Bf2 {[%emt 0:00:11]} Bxc5 {[%emt 0:00:47]} 21. Nc3 {[%emt 0:00:02]} Nb6 {[%emt 0:00:23]} 22. Qd3 {[%emt 0:00:02]} g6 {[%emt 0:00:55]} 23. Rae1 {[%emt 0:00:05]} Nc4 {[%emt 0:00:45]} 24. Qxd5+ {[%emt 0:00:55]} Qxd5 {[%emt 0:00:02]} 25. Nxd5 {[%emt 0:00:00]} b6 {[%emt 0:01:07]} 26. Bxc5 {[%emt 0:00:22]} bxc5 {[%emt 0:00:01]} 27. Nf6 {[%emt 0:00:57]} Rxe1 {[%emt 0:00:41]} 28. Rxe1 {[%emt 0:00:00]} Rd8 {[%emt 0:00:26]} 29. b3 {[%emt 0:00:07]} Na3 {[%emt 0:00:02]} 30. c4 {[%emt 0:00:06]} Rd2 {[%emt 0:00:11]} 31. Nd5 {[%emt 0:00:05]} Nc2 {[%emt 0:00:06]} 32. Re7+ {[%emt 0:00:05]} Kf8 {[%emt 0:00:00]} 33. Rxa7 {[%emt 0:01:50]} Nd4 {[%emt 0:00:01]} 34. Ra8+ {[%emt 0:00:08]} Kf7 {[%emt 0:00:02]} 35. Ra7+ {[%emt 0:00:07]} Kf8 {[%emt 0:00:00]} 36. Kf1 {[%emt 0:00:10]} Nf3 {[%emt 0:00:01]} 37. Ra8+ {[%emt 0:00:06]} Kf7 {[%emt 0:00:01]} 38. Ra7+ {[%emt 0:00:01]} Kf8 {[%emt 0:00:01]} 39. h3 {[%emt 0:00:09]} Nh2+ {[%emt 0:00:02]} 40. Ke1 {[%emt 0:00:01]} Nf3+ {[%emt 0:00:00]} 41. Kf1 {[%emt 0:00:00]} h4 {[%emt 0:00:02]} 42. Ra8+ {[%emt 0:00:06]} Kf7 {[%emt 0:00:01]} 43. Ra7+ {[%emt 0:00:00]} Kf8 {[%emt 0:00:01]} 44. Ne7 {[%emt 0:00:10]} Nh2+ {[%emt 0:00:02]} 45. Ke1 {[%emt 0:00:01]} Nf3+ {[%emt 0:00:01]} 46. Kf1 {[%emt 0:00:00]} Nh2+ {[%emt 0:00:06]} 47. Ke1 {[%emt 0:00:01]} Nf3+ {[%emt 0:00:01]} 48. Kf1 {[%emt 0:00:01]} 1/2-1/2

[Event "CCT Chessable Masters Play-In 2025"]
[Site "Online"]
[Date "2025.02.17"]
[Round "5.28"]
[White "Rakhmanov, Aleksandr"]
[Black "Puranik, Abhimanyu"]
[Result "1/2-1/2"]
[ECO "A20"]
[WhiteElo "2585"]
[BlackElo "2636"]
[PlyCount "81"]
[EventDate "2025.02.13"]
[EventType "swiss"]
[EventCountry "NET"]
[TimeControl "600"]
[WhiteClock "0:00:46"]
[BlackClock "0:01:54"]

1. c4 {[%emt 0:00:01]} e5 {[%emt 0:00:02]} 2. Nf3 {[%emt 0:00:01]} Nc6 {[%emt 0:00:03]} 3. d4 {[%emt 0:00:01]} exd4 {[%emt 0:00:02]} 4. Nxd4 {[%emt 0:00:00]} Nf6 {[%emt 0:00:18]} 5. Nxc6 {[%emt 0:00:02]} bxc6 {[%emt 0:00:01]} 6. g3 {[%emt 0:00:01]} Bb4+ {[%emt 0:00:04]} 7. Bd2 {[%emt 0:00:01]} Qe7 {[%emt 0:00:05]} 8. Bg2 {[%emt 0:00:01]} O-O {[%emt 0:00:01]} 9. O-O {[%emt 0:00:01]} Bxd2 {[%emt 0:00:04]} 10. Qxd2 {[%emt 0:00:04]} a5 {[%emt 0:00:03]} 11. Nc3 {[%emt 0:00:03]} a4 {[%emt 0:00:22]} 12. Rac1 {[%emt 0:00:18]} Re8 {[%emt 0:00:10]} 13. Rfd1 {[%emt 0:00:21]} h6 {[%emt 0:00:04]} 14. e4 {[%emt 0:00:18]} Qb4 {[%emt 0:00:08]} 15. Re1 {[%emt 0:00:28]} Ng4 {[%emt 0:01:01]} 16. a3 {[%emt 0:00:58]} Qc5 {[%emt 0:00:12]} 17. Na2 {[%emt 0:00:29]} d6 {[%emt 0:00:10]} 18. Nb4 {[%emt 0:00:07]} Ne5 {[%emt 0:00:08]} 19. Rc3 {[%emt 0:00:18]} Be6 {[%emt 0:00:23]} 20. Qc1 {[%emt 0:01:00]} Nxc4 {[%emt 0:00:31]} 21. Bf1 {[%emt 0:01:03]} d5 {[%emt 0:00:01]} 22. exd5 {[%emt 0:00:55]} cxd5 {[%emt 0:00:03]} 23. Nxd5 {[%emt 0:00:07]} Bxd5 {[%emt 0:00:11]} 24. Rxe8+ {[%emt 0:00:17]} Rxe8 {[%emt 0:00:03]} 25. Bxc4 {[%emt 0:00:00]} Bxc4 {[%emt 0:00:28]} 26. Rxc4 {[%emt 0:00:01]} Qa5 {[%emt 0:00:31]} 27. Rc3 {[%emt 0:00:53]} Re2 {[%emt 0:00:26]} 28. Re3 {[%emt 0:00:11]} Rd2 {[%emt 0:00:09]} 29. Qc6 {[%emt 0:00:35]} Qf5 {[%emt 0:01:25]} 30. Rf3 {[%emt 0:00:04]} Qe6 {[%emt 0:00:39]} 31. Qxe6 {[%emt 0:00:16]} fxe6 {[%emt 0:00:01]} 32. Rf4 {[%emt 0:00:01]} Rxb2 {[%emt 0:00:01]} 33. Rxa4 {[%emt 0:00:00]} Ra2 {[%emt 0:00:04]} 34. Ra7 {[%emt 0:00:06]} c5 {[%emt 0:00:02]} 35. Rc7 {[%emt 0:00:03]} Rxa3 {[%emt 0:00:01]} 36. Rxc5 {[%emt 0:00:02]} Kf7 {[%emt 0:00:01]} 37. h4 {[%emt 0:00:01]} Kf6 {[%emt 0:00:02]} 38. Kg2 {[%emt 0:00:01]} g6 {[%emt 0:00:02]} 39. Rb5 {[%emt 0:00:01]} h5 {[%emt 0:00:01]} 40. Rc5 {[%emt 0:00:00]} e5 {[%emt 0:00:03]} 41. Rc8 {[%emt 0:00:04]} 1/2-1/2

[Event "CCT Chessable Masters Play-In 2025"]
[Site "Online"]
[Date "2025.02.17"]
[Round "5.29"]
[White "Ponomariov, Ruslan"]
[Black "Santos Latasa, Jaime"]
[Result "1/2-1/2"]
[ECO "B40"]
[WhiteElo "2628"]
[BlackElo "2631"]
[PlyCount "92"]
[EventDate "2025.02.13"]
[EventType "swiss"]
[EventCountry "NET"]
[TimeControl "600"]
[WhiteClock "0:07:03"]
[BlackClock "0:03:27"]

1. e4 {[%emt 0:00:01]} c5 {[%emt 0:00:04]} 2. Nf3 {[%emt 0:00:01]} e6 {[%emt 0:00:01]} 3. c3 {[%emt 0:00:02]} Nf6 {[%emt 0:00:01]} 4. Bd3 {[%emt 0:00:02]} d5 {[%emt 0:00:03]} 5. e5 {[%emt 0:00:01]} Nfd7 {[%emt 0:00:03]} 6. Bc2 {[%emt 0:00:03]} c4 {[%emt 0:00:02]} 7. O-O {[%emt 0:00:02]} Nc6 {[%emt 0:00:02]} 8. Re1 {[%emt 0:00:01]} Qc7 {[%emt 0:00:01]} 9. Qe2 {[%emt 0:00:04]} g5 {[%emt 0:00:04]} 10. Nxg5 {[%emt 0:00:39]} Qxe5 {[%emt 0:00:03]} 11. d4 {[%emt 0:00:04]} cxd3 {[%emt 0:00:03]} 12. Bxd3 {[%emt 0:00:02]} Qxe2 {[%emt 0:00:04]} 13. Rxe2 {[%emt 0:00:04]} Be7 {[%emt 0:00:13]} 14. Na3 {[%emt 0:00:10]} a6 {[%emt 0:00:09]} 15. Bf4 {[%emt 0:00:21]} e5 {[%emt 0:00:11]} 16. Bd2 {[%emt 0:00:05]} h6 {[%emt 0:00:07]} 17. Nh3 {[%emt 0:00:04]} Nc5 {[%emt 0:00:18]} 18. Bc2 {[%emt 0:00:02]} Be6 {[%emt 0:00:18]} 19. b4 {[%emt 0:00:02]} Nd7 {[%emt 0:00:04]} 20. f4 {[%emt 0:00:03]} Bg4 {[%emt 0:00:10]} 21. Ree1 {[%emt 0:00:04]} e4 {[%emt 0:00:49]} 22. Nf2 {[%emt 0:00:03]} Be6 {[%emt 0:00:04]} 23. Bb3 {[%emt 0:00:04]} f5 {[%emt 0:00:07]} 24. Nc2 {[%emt 0:00:03]} Kf7 {[%emt 0:00:13]} 25. Be3 {[%emt 0:00:07]} a5 {[%emt 0:00:06]} 26. a3 {[%emt 0:00:01]} Bf6 {[%emt 0:00:09]} 27. b5 {[%emt 0:00:08]} a4 {[%emt 0:00:24]} 28. Ba2 {[%emt 0:00:08]} Na5 {[%emt 0:00:01]} 29. Nd4 {[%emt 0:00:01]} Nb3 {[%emt 0:00:01]} 30. Rad1 {[%emt 0:00:09]} Nxd4 {[%emt 0:00:13]} 31. Bxd4 {[%emt 0:00:01]} Rhc8 {[%emt 0:00:05]} 32. g4 {[%emt 0:00:04]} Bxd4 {[%emt 0:00:28]} 33. Rxd4 {[%emt 0:00:01]} Nb6 {[%emt 0:01:19]} 34. gxf5 {[%emt 0:00:02]} Bxf5 {[%emt 0:00:02]} 35. Bxd5+ {[%emt 0:00:00]} Nxd5 {[%emt 0:00:03]} 36. Rxd5 {[%emt 0:00:00]} Be6 {[%emt 0:00:00]} 37. Re5 {[%emt 0:00:01]} Rxc3 {[%emt 0:00:04]} 38. Nxe4 {[%emt 0:00:01]} Rg8+ {[%emt 0:00:02]} 39. Kf2 {[%emt 0:00:02]} Rc2+ {[%emt 0:00:07]} 40. Re2 {[%emt 0:00:01]} Rxe2+ {[%emt 0:00:04]} 41. Kxe2 {[%emt 0:00:00]} Rg2+ {[%emt 0:00:00]} 42. Kf3 {[%emt 0:00:01]} Rxh2 {[%emt 0:00:03]} 43. Nd6+ {[%emt 0:00:01]} Kf6 {[%emt 0:00:04]} 44. Ne4+ {[%emt 0:00:01]} Kf7 {[%emt 0:00:02]} 45. Nd6+ {[%emt 0:00:00]} Kf6 {[%emt 0:00:01]} 46. Ne4+ {[%emt 0:00:00]} Kf7 {[%emt 0:00:01]} 1/2-1/2

[Event "CCT Chessable Masters Play-In 2025"]
[Site "Online"]
[Date "2025.02.17"]
[Round "5.30"]
[White "Theodorou, Nikolas"]
[Black "Bjerre, Jonas Buhl"]
[Result "1-0"]
[ECO "B20"]
[WhiteElo "2611"]
[BlackElo "2640"]
[PlyCount "57"]
[EventDate "2025.02.13"]
[EventType "swiss"]
[EventCountry "NET"]
[TimeControl "600"]
[WhiteClock "0:01:20"]
[BlackClock "0:00:48"]

1. e4 {[%emt 0:00:01]} c5 {[%emt 0:00:01]} 2. b4 {[%emt 0:00:01]} b6 {[%emt 0:00:07]} 3. bxc5 {[%emt 0:00:01]} bxc5 {[%emt 0:00:01]} 4. Nc3 {[%emt 0:00:01]} g6 {[%emt 0:00:03]} 5. Nf3 {[%emt 0:00:05]} Bg7 {[%emt 0:00:02]} 6. Rb1 {[%emt 0:00:05]} d6 {[%emt 0:00:06]} 7. Bc4 {[%emt 0:00:09]} Nf6 {[%emt 0:00:28]} 8. e5 {[%emt 0:00:20]} dxe5 {[%emt 0:01:07]} 9. Nxe5 {[%emt 0:00:05]} Qd4 {[%emt 0:00:46]} 10. Bxf7+ {[%emt 0:01:51]} Kf8 {[%emt 0:00:03]} 11. Nf3 {[%emt 0:00:00]} Qf4 {[%emt 0:01:52]} 12. d3 {[%emt 0:00:39]} Qd6 {[%emt 0:00:54]} 13. Bc4 {[%emt 0:00:20]} Nc6 {[%emt 0:00:05]} 14. O-O {[%emt 0:00:17]} Bg4 {[%emt 0:00:04]} 15. h3 {[%emt 0:00:10]} Bh5 {[%emt 0:00:02]} 16. g4 {[%emt 0:00:29]} Nxg4 {[%emt 0:00:06]} 17. hxg4 {[%emt 0:00:03]} Bxg4 {[%emt 0:00:02]} 18. Ne4 {[%emt 0:00:02]} Qd7 {[%emt 0:01:05]} 19. Nxc5 {[%emt 0:00:45]} Qc8 {[%emt 0:00:15]} 20. Bd5 {[%emt 0:00:14]} Nd4 {[%emt 0:00:16]} 21. Be3 {[%emt 0:01:05]} Bh5 {[%emt 0:00:13]} 22. Nxd4 {[%emt 0:00:13]} Bxd1 {[%emt 0:00:42]} 23. Nde6+ {[%emt 0:00:02]} Kf7 {[%emt 0:00:07]} 24. Rfxd1 {[%emt 0:00:10]} Be5 {[%emt 0:00:04]} 25. Rb7 {[%emt 0:00:27]} Rb8 {[%emt 0:00:04]} 26. Ng5+ {[%emt 0:00:29]} Kf8 {[%emt 0:00:34]} 27. Nd7+ {[%emt 0:00:30]} Ke8 {[%emt 0:00:02]} 28. Bf7+ {[%emt 0:00:06]} Kd8 {[%emt 0:00:01]} 29. Ne6# {[%emt 0:00:00]} 1-0